bitfinex/quotes_ETHUSD_20260107
["timestamp","ask_amount","ask_price","bid_price","bid_amount"]
[1767801205454,0.17436327,3168.8,3167.8,7.27170515]
[1767801205780,0.91863267,3169.6,3167.9,0.95619779]
[1767801206010,0.91863267,3169.4,3167.9,0.95619779]
[1767801207379,0.91863267,3169.2,3168.0,4.11276344]
[1767801208191,0.91863267,3169.2,3168.1,0.95619779]
[1767801208387,1.64154338,3169.2,3168.3,0.95619779]
[1767801208710,0.72291071,3169.2,3168.3,0.95619779]
[1767801209366,3.15547,3169.1,3168.3,0.95619779]
[1767801210097,6.31094,3169.1,3168.3,0.95619779]
[1767801210706,3.15547,3169.1,3168.3,0.95619779]
[1767801210985,3.87842012,3169.1,3168.3,0.95619779]
[1767801211366,3.87842012,3169.1,3168.3,4.11246064]
[1767801211763,0.72295012,3169.1,3168.3,4.11246064]
[1767801211968,0.91863267,3169.3,3168.3,4.11246064]
[1767801212169,3.15545978,3169.2,3168.3,4.11246064]
[1767801214384,0.91863267,3169.3,3168.4,0.91486289]
[1767801214700,0.99393977,3169.6,3168.5,0.91486289]
[1767801214984,6.31081386,3169.7,3168.5,0.9128629]
[1767801214985,0.99393977,3169.4,3168.5,0.9128629]
[1767801215173,0.99393977,3169.3,3168.2,4.0712023]
[1767801215363,0.99393977,3169.1,3168.2,0.91486289]
[1767801215568,0.99393977,3169.1,3168.2,2.77219533]
[1767801215791,0.99393977,3169.1,3168.2,0.91486289]
[1767801216134,0.99393977,3168.9,3168.1,0.002]
[1767801216294,0.99393977,3168.9,3167.8,0.002]
[1767801217165,0.99393977,3168.9,3167.5,1e-08]
[1767801217573,0.99393977,3168.7,3167.5,1e-08]
[1767801217798,0.99393977,3168.5,3167.5,1e-08]
[1767801217980,0.99393977,3168.3,3167.5,1e-08]
[1767801219907,0.99393977,3168.1,3167.5,1e-08]
[1767801220674,3.15619383,3168.4,3167.5,1e-08]
[1767801220881,4.97509095,3168.5,3167.5,1e-08]
[1767801221201,5.70556631,3168.5,3167.5,1e-08]
[1767801221379,8.86171749,3168.5,3167.5,1e-08]
[1767801221698,5.70553569,3168.5,3167.5,1e-08]
[1767801222204,5.70551332,3168.5,3167.6,0.91486289]
[1767801222408,0.73047536,3168.5,3167.6,0.91486289]
[1767801222577,0.001,3168.6,3167.6,0.91486289]
[1767801222905,0.001,3168.6,3167.7,0.91486289]
[1767801224606,0.001,3168.6,3167.9,0.91486289]
[1767801224907,0.001,3168.6,3167.8,6.31352988]
[1767801225106,0.001,3168.6,3167.9,0.63135299]
[1767801225282,0.001,3168.6,3168.0,0.91486289]
[1767801225683,0.001,3168.6,3167.9,0.63135299]
[1767801225881,0.99393977,3168.5,3167.5,0.9148629]
[1767801226786,3.15616715,3168.4,3167.5,4.07191513]
[1767801227810,4.15010692,3168.4,3167.5,0.9148629]
[1767801227984,1.40895046,3168.3,3167.5,1e-08]
[1767801228385,1.40895046,3168.3,3167.5,3.15706252]
[1767801228790,0.99393977,3168.1,3167.4,0.00082824]
[1767801228983,0.99393977,3167.9,3166.7,3.15782733]
[1767801229218,0.99393977,3167.9,3166.6,4.07281857]
[1767801229416,0.99393977,3167.7,3166.7,0.40748186]
[1767801229914,0.99393977,3167.7,3166.7,1.32234475]
[1767801230116,0.99393977,3167.7,3166.5,0.002]
[1767801230618,0.99393977,3167.7,3166.8,3.15769915]
[1767801230921,3.15696426,3167.6,3166.6,3.15793857]
[1767801231088,3.15696426,3167.6,3166.6,6.31589979]
[1767801231415,4.16470614,3167.8,3166.7,0.91486289]
[1767801231612,3.15655595,3168.1,3166.9,0.91486289]
[1767801231914,3.98236735,3168.2,3166.9,0.91486289]
[1767801233016,3.98236735,3168.2,3167.1,0.91486289]
[1767801233613,7.1387347,3168.2,3167.1,0.91486289]
[1767801234190,3.98236735,3168.2,3167.1,0.91486289]
[1767801234615,0.826,3168.2,3167.1,0.91486289]
[1767801234801,0.99393977,3168.1,3167.2,1.63786165]
[1767801235115,3.15656565,3168.0,3167.2,0.91486289]
[1767801235302,4.150444,3168.1,3167.2,4.07220918]
[1767801235490,4.150444,3168.1,3167.2,0.91486289]
[1767801235893,4.150444,3168.1,3167.2,4.07219464]
[1767801236090,0.99393977,3168.5,3167.3,0.817]
[1767801236324,0.826,3169.1,3168.0,0.91486289]
[1767801236606,1.81993977,3169.1,3168.0,0.91486289]
[1767801237009,0.99393977,3169.0,3168.0,0.91486289]
[1767801237206,0.18199398,3169.0,3168.2,0.91486289]
[1767801237422,3.15550024,3169.1,3168.2,0.91486289]
[1767801238121,0.99393977,3169.9,3168.2,0.91486289]
[1767801238291,4.1498328,3169.7,3168.4,0.91486289]
[1767801238491,0.99493977,3169.7,3168.4,0.91486289]
[1767801238822,0.001,3169.7,3168.4,0.91486289]
[1767801239119,0.001,3169.7,3168.3,0.817]
[1767801239120,0.99393977,3169.5,3168.1,7.22779493]
[1767801239295,0.99393977,3169.3,3168.1,7.22779493]
[1767801240517,0.99393977,3169.3,3168.2,0.91486289]
[1767801240822,0.97844843,3169.2,3168.1,3.15645425]
[1767801241194,0.97844843,3169.2,3168.0,0.817]
[1767801241418,0.97844843,3169.0,3167.7,3.15678663]
[1767801241618,0.97844843,3168.8,3167.4,0.93541937]
[1767801242002,0.97844843,3168.8,3167.4,4.09251132]
[1767801242205,0.97844843,3168.8,3167.5,3.1570583]
[1767801242816,0.97844843,3168.8,3167.6,3.15694622]
[1767801243016,0.99634814,3168.6,3167.5,3.15705585]
[1767801243925,3.15606753,3168.5,3167.5,3.15706393]
[1767801244105,4.15235801,3168.6,3167.5,6.31412786]
[1767801244306,4.84072762,3168.6,3167.6,0.72495472]
[1767801244701,7.99673749,3168.6,3167.6,0.72495472]
[1767801245514,0.001,3168.5,3167.6,0.72495472]
[1767801246829,0.001,3168.5,3167.6,3.88189979]
[1767801247929,0.001,3168.5,3167.6,0.72495472]
[1767801248226,0.99634814,3168.2,3167.1,3.15746266]
[1767801249016,0.99634814,3168.2,3167.0,0.98479485]
[1767801249017,0.99634814,3168.2,3167.0,4.1423103]
[1767801249525,0.99634814,3168.2,3167.0,7.29987266]
[1767801249824,0.99634814,3168.2,3167.1,0.98479485]
[1767801250015,0.99634814,3168.2,3167.0,3.15751545]
[1767801250222,0.99634814,3168.0,3167.0,0.70402218]
[1767801252007,0.99634814,3168.0,3166.9,4.14442494]
[1767801252215,0.99634814,3167.8,3166.9,0.002]
[1767801253654,3.15660046,3168.0,3167.0,0.98479485]
[1767801253933,3.98260046,3168.0,3167.0,0.98479485]
[1767801254146,0.826,3168.0,3167.1,4.14225751]
[1767801254311,4.15263516,3168.3,3167.2,0.98479485]
[1767801254312,1.82234814,3168.3,3167.2,0.98479485]
[1767801254512,4.97865437,3168.3,3167.3,0.98479485]
[1767801254907,0.99634814,3168.2,3167.3,0.98479485]
[1767801255517,0.99634814,3168.2,3167.2,0.41422575]
[1767801256242,4.96623132,3168.2,3167.3,3.15726328]
[1767801256450,3.96988318,3168.2,3167.2,0.41422575]
[1767801256608,0.99634814,3168.1,3166.9,3.15962361]
[1767801256806,0.99634814,3168.1,3166.9,0.002]
[1767801257036,0.99634814,3167.9,3166.9,3.15963215]
[1767801257234,0.99634814,3167.9,3166.9,3.88985925]
[1767801257403,0.99634814,3167.9,3166.9,4.8746541]
[1767801257713,0.99634814,3167.9,3167.3,0.002]
[1767801258235,3.15676494,3167.8,3167.3,0.002]
[1767801258436,0.99634814,3167.7,3167.0,0.002]
[1767801258736,0.99634814,3167.5,3167.0,0.002]
[1767801259333,0.41531131,3167.6,3167.0,0.002]
[1767801259511,0.99634814,3167.7,3167.0,0.002]
[1767801261241,0.99634814,3167.6,3167.0,0.002]
[1767801262735,0.99634814,3167.5,3167.0,0.002]
[1767801263734,0.99634814,3167.5,3166.5,0.002]
[1767801263735,0.99634814,3167.4,3166.5,0.002]
[1767801263951,0.826,3167.5,3166.5,0.002]
[1767801263952,0.99634814,3167.2,3166.5,0.002]
[1767801265233,0.99634814,3167.1,3166.5,0.002]
[1767801267457,1.82234814,3167.4,3166.5,0.98679485]
[1767801267665,0.99634814,3167.7,3166.5,0.98679485]
[1767801268020,0.99634814,3167.6,3166.5,0.002]
[1767801268252,3.15694298,3167.7,3166.5,0.002]
[1767801268253,0.99634814,3167.4,3166.5,0.002]
[1767801270270,0.99634814,3167.2,3166.5,0.002]
[1767801270951,0.99634814,3167.2,3166.8,0.002]
[1767801271327,0.99634814,3167.2,3166.5,0.002]
[1767801272245,0.90295149,3167.1,3166.5,0.002]
[1767801275055,0.001,3167.3,3166.5,0.98418451]
[1767801275258,2.99894044,3167.8,3167.0,0.98218451]
[1767801275567,2.99894044,3167.8,3166.5,0.819]
[1767801275568,0.90295149,3168.8,3167.2,0.98218451]
[1767801275861,3.79195522,3171.6,3167.2,0.98218451]
[1767801275862,0.90295149,3168.3,3167.3,0.17991845]
[1767801276021,0.90295149,3168.3,3167.2,0.817]
[1767801276227,0.90295149,3168.3,3166.6,1.79918451]
[1767801276952,0.90295149,3168.1,3166.7,3.15786149]
[1767801277147,0.90295149,3168.1,3166.6,4.95711007]
[1767801277354,0.90295149,3167.9,3166.7,0.81171625]
[1767801279260,0.90295149,3167.7,3166.7,0.81171625]
[1767801279461,0.90295149,3167.7,3166.6,0.817]
[1767801280442,0.90295149,3167.7,3166.6,1.79918451]
[1767801281141,0.90295149,3167.5,3166.6,1.79918451]
[1767801282072,0.90295149,3167.5,3166.5,0.002]
[1767801282277,0.90295149,3167.3,3166.5,0.002]
[1767801282976,0.90295149,3167.3,3166.9,0.002]
[1767801283183,0.90295149,3167.1,3166.5,0.002]
[1767801283547,3.15736297,3167.2,3166.5,0.002]
[1767801283841,3.15736297,3167.2,3166.5,1.39842855]
[1767801284167,7.14005431,3167.6,3166.6,0.98218451]
[1767801284367,0.90295149,3167.5,3166.5,0.41624404]
[1767801284672,0.90295149,3167.5,3166.5,0.002]
[1767801284977,0.90295149,3167.5,3166.5,0.98418451]
[1767801285188,6.3143272,3167.4,3166.5,0.98418451]
[1767801285469,6.3143272,3167.4,3166.1,3.16042968]
[1767801285470,0.90295149,3167.3,3166.1,0.002]
[1767801285670,0.90295149,3167.1,3165.9,0.002]
[1767801285842,0.90295149,3167.1,3165.7,0.002]
[1767801286038,0.90295149,3166.9,3165.7,0.002]
[1767801287176,0.90295149,3166.7,3165.7,0.002]
[1767801289194,6.31592244,3166.6,3165.7,0.002]
[1767801289392,0.90295149,3166.5,3165.7,0.002]
[1767801289855,6.31592244,3166.6,3165.7,0.98418451]
[1767801289856,3.15796122,3166.6,3165.7,0.98418451]
[1767801290251,4.46700398,3166.6,3165.7,0.98418451]
[1767801290452,7.6249652,3166.6,3165.7,0.98418451]
[1767801290647,0.90295149,3166.5,3165.7,0.002]
[1767801291222,0.90295149,3166.3,3165.7,0.002]
[1767801291886,3.15808625,3166.5,3165.7,0.002]
[1767801292058,6.85900054,3166.5,3165.7,0.98418451]
[1767801292385,3.70091429,3166.5,3165.7,0.98418451]
[1767801292755,0.90295149,3166.4,3165.7,0.002]
[1767801292960,6.85900054,3166.5,3165.7,0.98418451]
[1767801293155,0.54282804,3166.5,3165.7,0.98418451]
[1767801293363,6.31552354,3166.8,3165.8,0.98218451]
[1767801293683,7.21847503,3166.8,3165.8,0.98218451]
[1767801293869,0.90295149,3166.7,3165.7,0.002]
[1767801294188,0.90295149,3166.7,3165.7,3.1608497]
[1767801294383,0.90295149,3166.7,3165.7,0.002]
[1767801294576,0.90295149,3166.5,3165.7,0.002]
[1767801295381,4.06102429,3166.5,3165.7,0.002]
[1767801295886,0.90295149,3166.5,3165.7,0.002]
[1767801296091,0.001,3166.0,3165.7,0.98418451]
[1767801296263,0.001,3166.0,3165.7,1.71441468]
[1767801296990,0.001,3166.0,3165.7,0.73223017]
[1767801297186,0.001,3166.0,3165.7,0.002]
[1767801297690,3.15773549,3166.9,3166.2,0.98218451]
[1767801297691,7.87863969,3166.9,3166.2,0.98218451]
[1767801297992,4.72090502,3166.6,3165.7,0.98418451]
[1767801298194,5.62385651,3166.6,3165.7,0.98418451]
[1767801298805,3.15806095,3166.5,3165.7,1.16440296]
[1767801299092,3.15806095,3166.5,3165.7,4.32322449]
[1767801299259,8.78186761,3166.6,3165.7,4.32322449]
[1767801299894,4.06096259,3166.6,3165.7,4.32322449]
[1767801300103,4.06096259,3166.6,3165.8,1.41450696]
[1767801300303,3.15757197,3167.0,3165.9,0.98218451]
[1767801300792,6.31514394,3167.0,3165.9,0.98218451]
[1767801300990,3.15757197,3167.0,3166.1,0.96726707]
[1767801301161,4.72090502,3166.9,3166.1,0.96726707]
[1767801301361,0.9613747,3166.9,3166.1,0.96726707]
[1767801301970,0.90342248,3166.4,3165.7,0.18221845]
[1767801302168,0.90342248,3166.4,3165.7,0.002]
[1767801302912,0.90342248,3166.2,3165.7,0.002]
[1767801303192,6.31652086,3166.3,3165.3,0.002]
[1767801303193,0.90342248,3165.8,3165.3,0.002]
[1767801303574,0.90342248,3165.8,3165.2,0.002]
[1767801303780,0.90342248,3165.6,3165.2,0.002]
[1767801304100,0.90342248,3166.1,3165.2,0.002]
[1767801304868,0.90342248,3165.9,3165.2,0.002]
[1767801306872,0.90342248,3165.7,3164.9,0.002]
[1767801307072,0.90342248,3165.6,3164.6,0.002]
[1767801307300,0.90342248,3165.6,3164.5,0.002]
[1767801307475,0.90342248,3165.6,3164.1,0.93328724]
[1767801308321,0.90342248,3165.6,3164.3,0.93128724]
[1767801308473,0.90342248,3165.4,3165.1,0.002]
[1767801308793,0.90342248,3165.4,3164.1,0.93328724]
[1767801308992,6.3185164,3165.3,3164.2,3.1603349]
[1767801309197,0.90342248,3165.2,3164.2,3.1603349]
[1767801309783,0.90342248,3165.2,3164.3,0.93128724]
[1767801309970,0.90342248,3165.2,3164.4,0.72519786]
[1767801311414,4.062783,3165.2,3164.3,4.0914899]
[1767801312574,4.062783,3165.2,3164.3,0.93128724]
[1767801313116,4.062783,3165.2,3164.1,0.002]
[1767801313117,0.90342248,3165.1,3164.1,0.002]
[1767801313329,4.06298014,3165.0,3164.1,0.002]
[1767801313486,1.62566748,3164.9,3164.1,0.002]
[1767801313693,0.90342248,3164.8,3164.1,0.002]
[1767801315691,0.90342248,3164.7,3164.1,0.002]
[1767801316424,0.90242343,3165.7,3164.1,0.93328724]
[1767801316596,0.90342248,3165.5,3164.1,0.93328724]
[1767801316911,0.90342248,3165.3,3164.1,0.002]
[1767801317684,0.90342248,3165.1,3164.1,0.002]
[1767801320509,0.90342248,3164.9,3164.4,0.002]
[1767801321908,3.15949147,3165.1,3164.4,0.002]
[1767801322109,3.15949147,3165.1,3164.4,0.93328724]
[1767801322724,6.31898294,3165.1,3164.4,0.93328724]
[1767801322911,1.62566302,3165.0,3164.4,0.002]
[1767801323110,1.07636473,3165.4,3164.4,0.93328724]
[1767801323304,3.15926629,3165.3,3164.4,0.93328724]
[1767801323491,0.90342248,3165.2,3164.4,0.93328724]
[1767801324321,0.90342248,3165.2,3164.4,0.002]
[1767801324722,0.90342248,3165.0,3164.1,0.002]
[1767801325031,1.0381796,3164.9,3164.2,0.93128724]
[1767801325233,3.15945783,3165.1,3164.2,0.93128724]
[1767801325234,0.90342248,3165.1,3164.2,0.76411319]
[1767801325439,0.90342248,3165.1,3164.1,3.16242183]
[1767801325607,3.15912497,3165.5,3164.1,10.30133455]
[1767801325805,6.31824994,3165.5,3164.2,1.12346218]
[1767801326419,0.90342248,3165.4,3164.2,1.12346218]
[1767801326638,0.90342248,3165.4,3164.1,3.16242183]
[1767801327140,0.90342248,3165.2,3164.1,3.16242183]
[1767801328717,6.3185164,3165.3,3164.1,3.16242183]
[1767801328911,3.16000113,3165.6,3164.1,6.32287819]
[1767801328912,1.73142248,3165.6,3164.1,6.32287819]
[1767801329129,3.15908633,3165.5,3164.1,6.32287819]
[1767801329449,3.15908633,3165.5,3164.2,1.04166597]
[1767801330013,3.15908633,3165.5,3164.3,0.93128724]
[1767801330652,4.89041172,3165.6,3164.3,0.93128724]
[1767801330653,1.73142248,3165.6,3164.3,0.93128724]
[1767801330953,4.89040688,3165.6,3164.3,0.93128724]
[1767801331151,4.89040688,3165.6,3164.5,0.93128724]
[1767801331352,4.89040688,3165.6,3164.7,0.93128724]
[1767801331353,8.04939128,3165.6,3164.7,0.93128724]
[1767801331718,1.73142248,3165.6,3164.7,0.93128724]
[1767801331918,0.90750455,3165.5,3164.7,0.93128724]
[1767801333347,4.06661278,3165.5,3164.7,0.93128724]
[1767801333647,4.06661278,3165.5,3164.7,4.81625114]
[1767801333852,0.90750455,3165.5,3164.7,4.81625114]
[1767801334346,4.06657931,3165.5,3164.7,4.81625114]
[1767801334525,0.90750455,3165.5,3164.7,4.81625114]
[1767801335637,0.90750455,3165.4,3164.7,0.72512744]
[1767801335953,0.90750455,3165.3,3164.4,4.17739985]
[1767801336156,0.90750455,3165.3,3164.4,0.19929532]
[1767801336346,0.90750455,3165.3,3164.4,0.002]
[1767801336658,0.90750455,3165.3,3164.4,3.16215304]
[1767801336842,0.90750455,3165.3,3164.4,0.002]
[1767801337451,0.90750455,3165.1,3164.4,0.002]
[1767801337747,1.31419081,3165.1,3164.4,0.002]
[1767801338250,3.15929228,3165.3,3164.4,0.95083619]
[1767801338449,7.22608911,3165.3,3164.4,0.95083619]
[1767801339045,0.90750455,3165.2,3164.4,0.95083619]
[1767801339347,3.15929228,3165.3,3164.4,0.95083619]
[1767801339852,4.06679683,3165.3,3164.4,0.95083619]
[1767801340047,0.77154331,3165.2,3164.4,0.95083619]
[1767801340549,0.90750455,3165.1,3164.4,0.002]
[1767801340927,0.77054426,3165.2,3164.8,0.94883619]
[1767801341127,0.48945785,3165.4,3164.8,0.94883619]
[1767801341329,0.90750455,3165.3,3164.5,0.94883619]
[1767801341646,0.90750455,3165.2,3164.6,0.41109929]
[1767801342062,0.90750455,3165.2,3164.4,3.16210732]
[1767801342856,0.90750455,3165.2,3164.5,3.16005297]
[1767801343026,3.15920572,3165.4,3164.5,4.10888916]
[1767801343552,3.15920572,3165.4,3164.6,0.94883619]
[1767801343751,0.90750455,3165.3,3164.4,0.002]
[1767801343954,0.90750455,3165.2,3164.4,0.002]
[1767801344450,0.90850455,3165.0,3164.4,0.002]
[1767801345053,3.15910139,3165.5,3164.7,0.94883619]
[1767801345249,0.001,3165.6,3164.7,0.93093404]
[1767801345738,3.15753813,3167.1,3164.9,0.94883619]
[1767801345739,0.74965633,3166.2,3164.9,0.94883619]
[1767801345940,0.74965633,3166.2,3165.1,0.94883619]
[1767801347672,3.15845993,3166.1,3165.2,3.15935801]
[1767801348030,3.90805923,3166.2,3165.2,3.15935801]
[1767801348360,3.1584029,3166.2,3165.3,0.94883619]
[1767801348561,0.827,3166.4,3165.5,0.94883619]
[1767801348737,0.90750455,3166.6,3165.5,0.94883619]
[1767801350156,4.06550258,3166.6,3165.6,3.1589588]
[1767801350334,7.22350061,3166.6,3165.7,1.67551655]
[1767801350532,3.15791457,3166.7,3165.8,0.94883619]
[1767801350862,7.22313563,3166.8,3165.8,0.94883619]
[1767801352053,3.15796122,3166.6,3165.8,0.94883619]
[1767801352250,0.90750455,3166.7,3165.9,0.48343466]
[1767801352558,0.90750455,3166.6,3164.6,0.94883619]
[1767801352763,0.90750455,3166.6,3165.4,3.15908551]
[1767801352975,0.90750455,3166.6,3165.3,0.94883619]
[1767801353264,0.90750455,3166.6,3165.5,3.1590146]
[1767801354028,4.06547745,3166.6,3165.5,4.10789479]
[1767801354232,4.06547745,3166.6,3165.5,7.26695339]
[1767801354432,0.90750455,3166.6,3165.5,7.26695339]
[1767801354735,0.90750455,3166.6,3165.6,0.7443637]
[1767801355466,4.06546584,3166.6,3165.6,0.7443637]
[1767801355965,0.90750455,3166.6,3165.6,0.7443637]
[1767801356269,0.90750455,3166.5,3165.6,0.7443637]
[1767801356433,0.90750455,3166.5,3165.4,0.99468362]
[1767801356636,0.90750455,3166.5,3165.9,0.002]
[1767801356864,0.90750455,3166.5,3165.5,3.15901628]
[1767801357059,0.90850455,3166.5,3165.5,3.15901628]
[1767801357250,0.90850455,3166.5,3165.5,0.002]
[1767801357577,0.90850455,3166.5,3165.6,0.51046294]
[1767801359068,3.15816068,3166.4,3165.6,0.51046294]
[1767801359264,4.06566523,3166.4,3165.6,0.51046294]
[1767801359865,0.90750455,3166.3,3165.5,0.002]
[1767801360836,0.90750455,3166.3,3165.2,0.818]
[1767801361051,0.90750455,3166.1,3164.5,4.1088388]
[1767801361374,0.90750455,3166.1,3164.7,3.15980277]
[1767801361567,0.90750455,3166.1,3164.7,3.15980992]
[1767801361880,9.47508051,3166.2,3164.6,3.97794429]
[1767801361881,0.90750455,3165.9,3164.6,3.97794429]
[1767801362040,0.95572613,3165.8,3164.6,3.97794429]
[1767801362241,0.95572613,3165.8,3164.8,0.94108871]
[1767801362448,0.95572613,3166.1,3165.2,3.15935408]
[1767801362875,3.15836017,3166.2,3165.3,0.94108871]
[1767801363075,6.31661119,3166.3,3165.3,1.66707695]
[1767801363374,0.96264488,3166.2,3164.9,4.88321971]
[1767801363670,0.96264488,3166.2,3165.1,0.90560562]
[1767801364176,0.96264488,3166.2,3165.1,4.06506289]
[1767801364678,0.96264488,3166.2,3165.2,4.06495478]
[1767801365464,3.15845993,3166.1,3165.2,0.90560562]
[1767801365770,3.15845993,3166.1,3165.2,4.06494782]
[1767801365973,6.31691986,3166.1,3165.2,0.90560562]
[1767801366347,7.27956474,3166.1,3165.2,0.90560562]
[1767801366548,4.12110481,3166.1,3165.2,4.06495521]
[1767801366861,0.96164678,3166.8,3165.7,0.90560562]
[1767801367057,6.31572298,3166.7,3165.7,0.90560562]
[1767801367259,4.12050637,3166.7,3165.7,0.90560562]
[1767801367457,3.15783383,3166.8,3165.7,0.90560562]
[1767801367458,0.96264488,3166.5,3165.7,6.31765616]
[1767801367760,0.96264488,3166.5,3165.8,0.63176562]
[1767801368380,3.15799445,3166.6,3165.8,1.53737124]
[1767801368684,4.12063965,3166.6,3165.8,0.63176562]
[1767801368982,0.96264488,3166.5,3165.8,0.63176562]
[1767801369170,0.96264488,3166.5,3165.5,4.06461245]
[1767801369678,4.12080128,3166.5,3165.5,4.06661245]
[1767801369880,0.96264488,3166.5,3165.5,7.22567105]
[1767801370584,4.12071597,3166.5,3165.5,4.06661245]
[1767801370779,0.96064678,3166.4,3165.5,4.06661245]
[1767801370978,0.95265438,3166.4,3165.6,0.80437658]
[1767801371153,0.94066575,3166.4,3165.5,0.002]
[1767801371684,0.96264488,3166.2,3165.5,0.002]
[1767801372274,3.15826043,3166.3,3165.5,0.002]
[1767801372476,7.27916574,3166.3,3165.5,0.002]
[1767801372684,0.96264488,3166.2,3165.5,0.002]
[1767801372890,3.15826043,3166.3,3165.5,0.90760562]
[1767801373180,4.12090531,3166.3,3165.5,0.90760562]
[1767801376182,7.27916574,3166.3,3165.5,0.90760562]
[1767801376484,7.27916574,3166.3,3165.5,0.002]
[1767801376485,0.96264488,3166.2,3165.5,0.002]
[1767801377282,0.96264488,3166.1,3165.5,0.002]
[1767801377460,0.96264488,3166.1,3165.1,0.002]
[1767801378394,0.96264488,3165.9,3165.1,0.002]
[1767801380289,4.12140411,3165.8,3165.1,0.002]
[1767801380498,7.28016334,3165.8,3165.1,0.002]
[1767801381200,0.96264488,3165.7,3165.1,0.002]
[1767801381493,0.00117078,3165.1,3164.4,0.002]
[1767801381888,0.96381566,3165.1,3165.0,0.002]
[1767801382086,0.96381566,3165.1,3164.4,0.002]
[1767801382292,0.96264488,3164.9,3164.4,0.002]
[1767801382600,6.31911532,3165.0,3164.4,0.002]
[1767801383298,7.2817602,3165.0,3164.4,0.002]
[1767801383592,0.96264488,3164.9,3164.3,0.002]
[1767801384180,0.96264488,3164.7,3164.3,0.002]
[1767801384790,3.15970289,3164.9,3164.3,0.002]
[1767801385602,4.12234777,3164.9,3164.3,0.002]
[1767801387304,0.96264488,3164.8,3164.3,0.002]
[1767801387676,3.15970289,3164.9,3164.3,0.90760562]
[1767801388090,0.00117078,3165.1,3164.3,0.90760562]
[1767801388407,3.1606534,3165.1,3164.3,0.90760562]
[1767801388613,6.32013602,3165.1,3164.3,0.90760562]
[1767801388781,6.31896524,3165.1,3164.3,0.90643484]
[1767801388968,3.15948262,3165.1,3164.3,0.90643484]
[1767801389608,3.15948262,3165.1,3164.4,0.90560562]
[1767801389778,6.31896524,3165.1,3164.4,0.90560562]
[1767801390313,3.15948262,3165.1,3164.4,0.90560562]
[1767801390473,0.96264488,3165.2,3164.3,0.00082922]
[1767801390773,0.96264488,3165.0,3164.3,0.00082922]
[1767801392516,6.3185164,3165.3,3164.4,0.99787429]
[1767801392517,0.99765241,3165.2,3164.4,0.99787429]
[1767801392889,0.99765241,3165.2,3164.3,0.00082922]
[1767801393216,0.99765241,3165.1,3164.3,0.00082922]
[1767801394421,0.99765241,3165.1,3164.7,0.002]
[1767801394590,3.15955766,3165.0,3164.3,0.00082922]
[1767801394918,3.15955766,3165.0,3164.4,0.002]
[1767801395517,6.31911532,3165.0,3164.4,0.002]
[1767801395703,6.31911532,3165.0,3164.3,0.99870351]
[1767801395910,0.99765241,3164.9,3164.3,0.00082922]
[1767801396490,3.15975733,3164.8,3164.3,0.00082922]
[1767801397725,0.99765241,3164.7,3164.1,0.002]
[1767801398094,0.99765241,3164.7,3164.0,0.002]
[1767801398650,0.99765241,3164.5,3164.0,0.002]
[1767801398926,0.99765241,3164.5,3163.8,0.002]
[1767801399223,0.99765241,3164.5,3163.2,3.1613215]
[1767801399421,0.99765241,3164.5,3163.1,3.98243186]
[1767801399604,0.99765241,3164.5,3163.2,4.1591836]
[1767801399803,0.99765241,3164.3,3163.3,0.41611836]
[1767801400198,0.99765241,3164.3,3163.1,3.16339996]
[1767801400409,0.99765241,3164.3,3163.3,0.99787429]
[1767801400613,6.32071296,3164.2,3163.3,0.99787429]
[1767801400810,7.31836537,3164.2,3163.3,0.99787429]
[1767801401033,0.99765241,3164.1,3163.1,0.002]
[1767801402843,3.16022947,3164.4,3163.1,0.99987429]
[1767801402844,0.99765241,3163.9,3163.1,0.99987429]
[1767801403130,0.99765241,3163.9,3163.1,0.002]
[1767801404829,7.31916451,3163.8,3163.1,0.002]
[1767801405209,4.15840846,3163.8,3163.1,0.002]
[1767801406632,3.16073201,3163.9,3163.1,0.99987429]
[1767801406633,3.16069409,3163.9,3163.1,0.99987429]
[1767801406829,4.15820866,3164.0,3163.1,0.99987429]
[1767801407002,0.99765241,3163.9,3163.4,0.002]
[1767801407205,6.3211125,3164.0,3163.4,0.002]
[1767801407404,7.31876491,3164.0,3163.1,0.99987429]
[1767801411440,0.99765241,3163.8,3163.1,0.002]
[1767801411903,4.1578201,3164.4,3163.2,0.99787429]
[1767801412103,3.43890978,3165.4,3163.3,0.99787429]
[1767801412104,0.99765241,3164.7,3163.3,0.99787429]
[1767801412332,3.15988081,3164.7,3163.4,0.99787429]
[1767801412526,3.15981886,3164.8,3163.5,0.99787429]
[1767801412731,4.72913501,3165.2,3163.5,0.99787429]
[1767801412937,4.15441353,3164.8,3163.8,0.99787429]
[1767801413107,0.99765241,3164.7,3163.5,0.99787429]
[1767801413436,4.15753323,3164.7,3163.7,0.99787429]
[1767801413607,0.99765241,3164.6,3163.8,0.41588302]
[1767801414603,6.31976164,3164.7,3163.8,1.41375731]
[1767801416337,7.31741405,3164.7,3163.8,1.41375731]
[1767801416531,6.31976164,3164.7,3163.5,0.99787429]
[1767801417239,0.99265716,3164.9,3163.5,0.99787429]
[1767801417412,0.99765241,3164.7,3163.6,0.99787429]
[1767801417613,0.99465526,3164.5,3163.7,3.16085594]
[1767801417840,0.98666286,3164.5,3163.8,0.41587302]
[1767801418135,0.97367521,3164.5,3163.8,0.41587302]
[1767801418309,0.96867996,3164.5,3163.8,0.41587302]
[1767801418509,0.96168661,3164.5,3163.8,0.41587302]
[1767801418724,0.95369421,3164.5,3163.8,0.41587302]
[1767801418925,0.94570181,3164.5,3163.9,0.3576729]
[1767801419135,0.93671036,3164.5,3163.9,0.3576729]
[1767801419315,0.92871796,3164.5,3163.9,0.3576729]
[1767801419515,0.91972651,3164.5,3163.9,0.3576729]
[1767801419730,0.8787653,3164.5,3163.9,0.3576729]
[1767801419935,3.15986667,3164.7,3164.0,0.35183764]
[1767801420134,4.15751908,3164.7,3164.0,0.35183764]
[1767801420633,0.827,3165.0,3163.5,0.99787429]
[1767801420634,0.9277674,3164.4,3163.5,0.99787429]
[1767801421219,0.9277674,3164.4,3163.5,4.15890997]
[1767801421540,0.9277674,3164.4,3163.5,0.99787429]
[1767801421838,0.9277674,3164.4,3163.4,0.002]
[1767801422140,0.9277674,3164.4,3163.4,0.979613]
[1767801422337,0.9277674,3164.4,3163.5,0.977613]
[1767801423247,0.827,3164.5,3163.6,0.977613]
[1767801423631,0.99692549,3164.6,3163.6,0.977613]
[1767801423940,1.82392549,3164.6,3163.6,0.977613]
[1767801424727,0.99692549,3164.6,3163.6,0.977613]
[1767801425227,7.31703925,3164.5,3163.6,0.977613]
[1767801426046,7.31703925,3164.5,3163.7,0.977613]
[1767801426047,4.15698237,3164.5,3163.7,0.977613]